fUSD/lending_fUSD_20240624
["ID","MTS","AMOUNT","RATE_DAILY","PERIOD"]
[330271435,1719219178693,-639.0,0.00020273,4]
[330271436,1719219178725,-500.0,0.00020273,4]
[330271437,1719219178757,-635.57,0.00020273,4]
[330271438,1719219178787,-500.0,0.00020273,4]
[330271439,1719219178824,-500.0,0.00020273,4]
[330271440,1719219178856,-500.0,0.00020273,4]
[330271441,1719219178889,-1209.07,0.00020273,4]
[330271442,1719219178920,-500.0,0.00020273,4]
[330271443,1719219178952,-552.07,0.00020273,4]
[330271444,1719219178985,-500.0,0.00020273,4]
[330271445,1719219179019,-583.57,0.00020273,4]
[330271446,1719219179055,-550.47,0.00020273,4]
[330271447,1719219179093,-500.0,0.00020273,4]
[330271448,1719219179126,-500.0,0.00020273,4]
[330271449,1719219179160,-500.0,0.00020273,4]
[330271450,1719219179194,-650.21,0.00020273,4]
[330271451,1719219179226,-612.46,0.00020273,4]
[330271452,1719219179258,-500.0,0.00020273,4]
[330271453,1719219179295,-500.0,0.00020273,4]
[330271454,1719219179328,-500.0,0.00020273,4]
[330271455,1719219179362,-746.5,0.00020273,4]
[330271456,1719219179397,-1602.79,0.00020273,4]
[330271457,1719219179430,-1731.28,0.00020273,4]
[330271458,1719219179462,-500.0,0.00020273,4]
[330271459,1719219179495,-500.0,0.00020273,4]
[330271460,1719219179544,-500.0,0.00020273,4]
[330271461,1719219179582,-500.0,0.00020273,4]
[330271462,1719219179616,-1285.84,0.00020273,4]
[330271463,1719219179652,-500.0,0.00020273,4]
[330271464,1719219179687,-501.38,0.00020273,4]
[330271465,1719219179723,-507.01138433,0.00020273,4]
[330271466,1719219179759,-503.60021532,0.00020273,4]
[330271467,1719219179793,-500.0,0.00020273,4]
[330271468,1719219179827,-879.86582112,0.00020273,3]
[330271469,1719219179860,-753.11,0.00020273,4]
[330271470,1719219179900,-500.0,0.00020273,4]
[330271471,1719219179932,-1212.55,0.00020273,4]
[330271472,1719219179966,-500.0,0.00020273,4]
[330271473,1719219180002,-1138.46,0.00020273,4]
[330271474,1719219180039,-500.0,0.00020273,4]
[330271475,1719219180077,-375.98579374,0.00020273,4]
[330271476,1719219180115,-500.0,0.00020273,4]
[330271477,1719219180158,-723.22,0.00020273,4]
[330271478,1719219180196,-985.76,0.00020273,4]
[330271479,1719219180233,-500.0,0.00020273,4]
[330271480,1719219180271,-250.0,0.00020273,4]
[330271481,1719219180308,-500.0,0.00020273,4]
[330271482,1719219180345,-1071.39,0.00020273,4]
[330271483,1719219180384,-500.0,0.00020273,4]
[330271484,1719219180420,-500.0,0.00020273,4]
[330271485,1719219180456,-500.0,0.00020273,4]
[330271486,1719219180491,-500.0,0.00020273,4]
[330271487,1719219180526,-707.98,0.00020273,4]
[330271488,1719219180559,-635.89,0.00020273,4]
[330271489,1719219180593,-689.43,0.00020273,4]
[330271490,1719219180628,-1014.35,0.00020273,4]
[330271491,1719219180661,-553.86606517,0.00020273,4]
[330271492,1719219180696,-500.0,0.00020273,4]
[330271493,1719219180729,-500.0,0.00020273,4]
[330271494,1719219180763,-673.57,0.00020273,4]
[330271495,1719219180797,-500.0,0.00020273,4]
[330271496,1719219180829,-500.0,0.00020273,4]
[330271497,1719219180864,-541.37,0.00020273,4]
[330271498,1719219180898,-747.4,0.00020273,4]
[330271499,1719219180934,-563.8,0.00020273,4]
[330271500,1719219180967,-621.18,0.00020273,4]
[330271501,1719219181001,-653.53,0.00020273,4]
[330271502,1719219181033,-500.0,0.00020273,4]
[330271503,1719219181064,-737.88,0.00020273,4]
[330271504,1719219181352,-908.15,0.00020273,4]
[330271505,1719219181388,-500.0,0.00020273,4]
[330271506,1719219181423,-1561.59,0.00020273,4]
[330271507,1719219181456,-500.0,0.00020273,4]
[330271508,1719219181490,-500.0,0.00020273,4]
[330271509,1719219181526,-570.65,0.00020273,4]
[330271510,1719219181559,-500.0,0.00020273,4]
[330271511,1719219181593,-788.37,0.00020273,4]
[330271512,1719219181626,-758.31,0.00020273,4]
[330271513,1719219181660,-1016.82,0.00020273,4]
[330271514,1719219181693,-500.0,0.00020273,4]
[330271515,1719219181726,-500.0,0.00020273,4]
[330271516,1719219181760,-741.45,0.00020273,4]
[330271517,1719219181797,-500.0,0.00020273,4]
[330271518,1719219181832,-500.0,0.00020273,4]
[330271519,1719219181868,-634.1,0.00020273,4]
[330271520,1719219181906,-581.28,0.00020273,4]
[330271521,1719219181940,-500.0,0.00020273,4]
[330271522,1719219181975,-508.63,0.00020273,4]
[330271523,1719219182008,-1350.85,0.00020273,4]
[330271524,1719219182042,-514.55,0.00020273,4]
[330271525,1719219182075,-556.03,0.00020273,4]
[330271526,1719219182109,-650.34,0.00020273,4]
[330271527,1719219182147,-776.13,0.00020273,4]
[330271528,1719219182181,-538.15,0.00020273,4]
[330271529,1719219182215,-500.0,0.00020273,4]
[330271530,1719219182247,-512.0,0.00020273,4]
[330271531,1719219182281,-514.4,0.00020273,4]
[330271532,1719219182319,-500.0,0.00020273,4]
[330271533,1719219182352,-840.12,0.00020273,4]
[330271534,1719219182386,-525.46397001,0.00020273,4]
[330271535,1719219182421,-500.0,0.00020273,4]
[330271536,1719219182455,-1276.05,0.00020273,4]
[330271537,1719219182489,-738.89,0.00020273,4]
[330271538,1719219182526,-500.0,0.00020273,4]
[330271539,1719219182559,-500.0,0.00020273,4]
[330271540,1719219182595,-945.66,0.00020273,4]
[330271541,1719219182630,-500.0,0.00020273,4]
[330271542,1719219182667,-500.0,0.00020273,4]
[330271543,1719219182700,-774.27,0.00020273,4]
[330271544,1719219182733,-797.03,0.00020273,4]
[330271545,1719219182766,-674.88,0.00020273,4]
[330271546,1719219182799,-586.52,0.00020273,4]
[330271547,1719219182831,-165.87,0.00020273,4]
[330271548,1719219182865,-935.12,0.00020273,4]
[330271549,1719219182901,-500.0,0.00020273,4]
[330271550,1719219182934,-960.92,0.00020273,4]
[330271551,1719219182966,-500.0,0.00020273,4]
[330271552,1719219182999,-841.78,0.00020273,4]
[330271553,1719219183031,-500.0,0.00020273,4]
[330271554,1719219183062,-681.7,0.00020273,4]
[330271555,1719219183094,-500.0,0.00020273,4]
[330271556,1719219183127,-1492.08,0.00020273,4]
[330271557,1719219183160,-500.0,0.00020273,4]
[330271558,1719219183192,-698.57,0.00020273,4]
[330271559,1719219183222,-573.41,0.00020273,4]
[330271560,1719219183255,-563.03,0.00020273,4]
[330271561,1719219183289,-790.64,0.00020273,4]
[330271562,1719219183326,-500.0,0.00020273,4]
[330271563,1719219183359,-986.08,0.00020273,4]
[330271564,1719219183394,-641.19,0.00020273,4]
[330271565,1719219183427,-794.26,0.00020273,4]
[330271566,1719219183458,-2388.91,0.00020273,4]
[330271567,1719219183490,-500.0,0.00020273,4]
[330271568,1719219183523,-896.28,0.00020273,4]
[330271569,1719219183557,-2269.36,0.00020273,4]
[330271570,1719219183592,-880.92,0.00020273,4]
[330271571,1719219183631,-529.67,0.00020273,4]
[330271572,1719219183665,-877.57,0.00020273,4]
[330271573,1719219183700,-1138.11,0.00020273,4]
[330271574,1719219183732,-500.0,0.00020273,4]
[330271575,1719219183766,-500.0,0.00020273,4]
[330271576,1719219183799,-500.0,0.00020273,4]
[330271577,1719219183833,-18770.04,0.00020273,4]
[330271578,1719219183864,-1014.99,0.00020273,4]
[330271579,1719219183904,-500.0,0.00020273,4]
[330271580,1719219183939,-500.0,0.00020273,4]
[330271581,1719219183974,-1861.27,0.00020273,4]
[330271582,1719219184010,-1421.28,0.00020273,4]
[330271583,1719219184046,-527.05,0.00020273,4]
[330271584,1719219184082,-1512.7,0.00020273,4]
[330271585,1719219184119,-589.19,0.00020273,4]
[330271586,1719219184167,-726.38,0.00020273,4]
[330271587,1719219184202,-952.68,0.00020273,4]
[330271588,1719219184235,-500.0,0.00020273,4]
[330271589,1719219184268,-922.67,0.00020273,4]
[330271590,1719219184304,-1039.09,0.00020273,4]
[330271591,1719219184338,-600.96,0.00020273,4]
[330271592,1719219184374,-894.67,0.00020273,4]
[330271593,1719219184410,-500.0,0.00020273,4]
[330271594,1719219184443,-772.68,0.00020273,4]
[330271595,1719219184476,-1479.08,0.00020273,4]
[330271596,1719219184511,-500.0,0.00020273,4]
[330271597,1719219184546,-1895.67,0.00020273,4]
[330271598,1719219184579,-1665.06,0.00020273,4]
[330271599,1719219184612,-1100.8,0.00020273,4]
[330271600,1719219184648,-500.0,0.00020273,4]
[330271601,1719219184681,-1937.34,0.00020273,4]
[330271602,1719219184714,-657.61,0.00020273,4]
[330271603,1719219184747,-1694.54,0.00020273,4]
[330271604,1719219184780,-500.0,0.00020273,4]
[330271605,1719219184814,-500.0,0.00020273,4]
[330271606,1719219184847,-659.6,0.00020273,4]
[330271607,1719219184882,-690.76,0.00020273,4]
[330271608,1719219185093,-500.0,0.00020273,4]
[330271609,1719219185130,-840.14,0.00020273,4]
[330271610,1719219185163,-515.99,0.00020273,4]
[330271611,1719219185198,-1270.74,0.00020273,4]
[330271612,1719219185231,-870.19,0.00020273,4]
[330271613,1719219185263,-652.98,0.00020273,4]
[330271614,1719219185299,-500.0,0.00020273,4]
[330271615,1719219185349,-939.72,0.00020273,4]
[330271616,1719219185386,-1486.41,0.00020273,4]
[330271617,1719219185424,-2863.88,0.00020273,4]
[330271618,1719219185462,-1004.34,0.00020273,4]
[330271619,1719219185502,-709.34,0.00020273,4]
[330271620,1719219185538,-1493.59,0.00020273,4]
[330271621,1719219185573,-500.0,0.00020273,4]
[330271622,1719219185609,-621.76,0.00020273,4]
[330271623,1719219185647,-1311.74,0.00020273,4]
[330271624,1719219185682,-635.53,0.00020273,4]
[330271625,1719219185716,-500.0,0.00020273,4]
[330271626,1719219185753,-533.28,0.00020273,4]
[330271627,1719219185787,-500.0,0.00020273,4]
[330271628,1719219185820,-569.02,0.00020273,4]
[330271629,1719219185855,-532.01,0.00020273,4]
[330271630,1719219185889,-500.0,0.00020273,4]
[330271631,1719219185923,-1091.83,0.00020273,4]
[330271632,1719219185961,-587.85,0.00020273,4]
[330271633,1719219185995,-653.27,0.00020273,4]
[330271634,1719219186028,-500.0,0.00020273,4]
[330271635,1719219186063,-668.5,0.00020273,4]
[330271636,1719219186098,-1917.18,0.00020273,4]
[330271637,1719219186133,-500.0,0.00020273,4]
[330271638,1719219186168,-500.0,0.00020273,4]
[330271639,1719219186201,-500.0,0.00020273,4]
[330271640,1719219186234,-500.0,0.00020273,4]
[330271641,1719219186268,-500.0,0.00020273,4]
[330271642,1719219186306,-7415.19,0.00020273,4]
[330271643,1719219186340,-578.82,0.00020273,4]
[330271644,1719219186376,-1798.69,0.00020273,4]
[330271645,1719219186410,-500.0,0.00020273,4]
[330271646,1719219186443,-500.0,0.00020273,4]
[330271647,1719219186478,-815.27,0.00020273,4]
[330271648,1719219186513,-3527.56,0.00020273,4]
[330271649,1719219186547,-1358.05,0.00020273,4]
[330271650,1719219186579,-825.81,0.00020273,4]
[330271651,1719219186612,-629.87,0.00020273,4]
[330271652,1719219186648,-1236.09,0.00020273,4]
[330271653,1719219186683,-1278.17,0.00020273,4]
[330271654,1719219186716,-500.0,0.00020273,4]
[330271655,1719219186749,-2102.4,0.00020273,4]
[330271656,1719219186783,-500.0,0.00020273,4]
[330271657,1719219186816,-500.0,0.00020273,4]
[330271658,1719219186849,-509.74,0.00020273,4]
[330271659,1719219186883,-501.94,0.00020273,4]
[330271660,1719219186919,-500.0,0.00020273,4]
[330271661,1719219186952,-2784.87,0.00020273,4]
[330271662,1719219186984,-1027.87,0.00020273,4]
[330271663,1719219187016,-1717.27,0.00020273,4]
[330271664,1719219187050,-677.43,0.00020273,4]
[330271665,1719219187083,-1180.3,0.00020273,4]
[330271666,1719219187116,-500.0,0.00020273,4]
[330271667,1719219187152,-500.0,0.00020273,4]
[330271668,1719219187187,-727.25,0.00020273,4]
[330271669,1719219187222,-539.5,0.00020273,4]
[330271670,1719219187257,-3728.34,0.00020273,4]
[330271671,1719219187294,-500.0,0.00020273,4]
[330271672,1719219187328,-2529.06,0.00020273,4]
[330271673,1719219187366,-611.04,0.00020273,4]
[330271674,1719219187405,-2584.42,0.00020273,4]
[330271675,1719219187437,-500.0,0.00020273,4]
[330271676,1719219187469,-685.73,0.00020273,4]
[330271677,1719219187502,-500.0,0.00020273,4]
[330271678,1719219187535,-723.76,0.00020273,4]
[330271679,1719219187567,-764.02,0.00020273,4]
[330271680,1719219187600,-866.63,0.00020273,4]
[330271681,1719219187635,-1808.46,0.00020273,4]
[330271682,1719219187669,-3128.36,0.00020273,4]
[330271683,1719219187703,-2011.41,0.00020273,4]
[330271684,1719219187739,-1355.31,0.00020273,4]
[330271685,1719219187771,-706.96,0.00020273,4]
[330271686,1719219187805,-1087.64,0.00020273,4]
[330271687,1719219187837,-767.98,0.00020273,4]
[330271688,1719219187869,-541.88,0.00020273,4]
[330271689,1719219187904,-788.54,0.00020273,4]
[330271690,1719219187937,-500.0,0.00020273,4]
[330271691,1719219187968,-863.63,0.00020273,4]
[330271692,1719219187999,-500.0,0.00020273,2]
[330271693,1719219188032,-1293.94,0.00020273,4]
[330271694,1719219188064,-1892.22,0.00020273,4]
[330271695,1719219188113,-584.75,0.00020273,4]
[330271696,1719219188147,-872.65,0.00020273,4]
[330271697,1719219188179,-647.16,0.00020273,4]
[330271698,1719219188212,-1891.81,0.00020273,4]
[330271699,1719219188245,-500.0,0.00020273,4]
[330271700,1719219188279,-1053.59,0.00020273,4]
[330271701,1719219188312,-957.36,0.00020273,4]
[330271702,1719219188346,-500.0,0.00020273,4]
[330271703,1719219188381,-500.0,0.00020273,4]
[330271704,1719219188414,-500.0,0.00020273,4]
[330271705,1719219188447,-500.0,0.00020273,4]
[330271706,1719219188480,-341.1594427,0.00020273,4]
[330271707,1719219188513,-3298.75,0.00020273,4]
[330271708,1719219188550,-552.19,0.00020273,4]
[330271709,1719219188584,-500.0,0.00020273,4]
[330271710,1719219188617,-605.28,0.00020273,4]
[330271711,1719219188898,-849.74,0.00020273,4]
[330271712,1719219188933,-500.0,0.00020273,4]
[330271713,1719219188967,-1280.2,0.00020273,4]
[330271714,1719219189005,-1096.63,0.00020273,4]
[330271715,1719219189047,-1843.17,0.00020273,4]
[330271716,1719219189089,-834.91,0.00020273,4]
[330271717,1719219189133,-2317.46,0.00020273,4]
[330271718,1719219189174,-500.0,0.00020273,4]
[330271719,1719219189211,-644.94,0.00020273,4]
[330271720,1719219189244,-763.54,0.00020273,4]
[330271721,1719219189286,-632.79,0.00020273,4]
[330271722,1719219189324,-1862.43,0.00020273,4]
[330271723,1719219189361,-1578.46,0.00020273,4]
[330271724,1719219189403,-3854.5,0.00020273,4]
[330271725,1719219189439,-528.93,0.00020273,4]
[330271726,1719219189473,-1010.56,0.00020273,4]
[330271727,1719219189509,-679.63,0.00020273,4]
[330271728,1719219189544,-545.4,0.00020273,4]
[330271729,1719219189579,-500.0,0.00020273,4]
[330271730,1719219189613,-633.51,0.00020273,4]
[330271731,1719219189650,-500.0,0.00020273,4]
[330271732,1719219189684,-1076.34,0.00020273,4]
[330271733,1719219189718,-815.29,0.00020273,4]
[330271734,1719219189759,-500.1,0.00020273,4]
[330271735,1719219189793,-881.78,0.00020273,4]
[330271736,1719219189829,-752.54,0.00020273,4]
[330271737,1719219189870,-1656.04,0.00020273,4]
[330271738,1719219189911,-500.0,0.00020273,4]
[330271739,1719219191311,-1401.97,0.00020273,4]
[330271740,1719219191354,-821.2,0.00020273,4]
[330271741,1719219191393,-500.0,0.00020273,4]
[330271742,1719219191432,-12687.68,0.00020273,4]
[330271743,1719219191471,-606.55,0.00020273,4]
[330271744,1719219191509,-2054.46,0.00020273,4]
[330271745,1719219191548,-550.72,0.00020273,4]
[330271746,1719219191584,-860.24,0.00020273,4]
[330271747,1719219191622,-1145.17,0.00020273,4]
[330271748,1719219191663,-784.49,0.00020273,4]
[330271749,1719219191702,-934.49,0.00020273,4]
[330271750,1719219191742,-1756.01,0.00020273,4]
[330271751,1719219191780,-234.1,0.00020304,2]
[330271752,1719219191824,-5000.0,0.00020354,2]
[330271753,1719219191864,-500.0,0.00020377,2]
[330271754,1719219191907,-4454.52980797,0.00020379,2]
[330271755,1719219191949,-5594.31883355,0.00020441,2]
[330271756,1719219191987,-5594.31883355,0.00020441,2]
[330271757,1719219192024,-532.37,0.00020455,2]
[330271758,1719219192061,-151.0,0.00020463,30]
[330271759,1719219192097,-4532.25089043,0.00020463,2]
[330271760,1719219192140,-705.0,0.000205,4]
[330271761,1719219192177,-194.3,0.000205,4]
[330271762,1719219192216,-2032.22087186,0.00020519,2]
[330271763,1719219192254,-955.85753929,0.00020531,2]
[330271764,1719219192289,-2883.6533784,0.00020545,2]
[330271765,1719219192327,-698.44,0.00020547,4]
[330271766,1719219192367,-739.2,0.00020547,4]
[330271767,1719219192405,-539.47,0.00020547,4]
[330271768,1719219192439,-545.82,0.00020547,4]
[330271769,1719219192473,-850.95,0.00020547,4]
[330271770,1719219192510,-592.45,0.00020547,4]
[330271771,1719219192547,-664.37,0.00020547,4]
[330271772,1719219192587,-613.12,0.00020547,4]
[330271773,1719219192625,-821.61,0.00020547,4]
[330271774,1719219192670,-514.58,0.00020547,4]
[330271775,1719219192708,-500.0,0.00020547,4]
[330271776,1719219192744,-665.04,0.00020547,4]
[330271777,1719219192783,-629.11,0.00020547,4]
[330271778,1719219192817,-615.09,0.00020547,4]
[330271779,1719219192851,-572.87,0.00020547,4]
[330271780,1719219192891,-556.94,0.00020547,4]
[330271781,1719219192929,-500.0,0.00020547,4]
[330271782,1719219192963,-887.24,0.00020547,4]
[330271783,1719219192996,-655.04,0.00020547,4]
[330271784,1719219193029,-509.2,0.00020547,4]
[330271785,1719219193062,-519.43,0.00020547,4]
[330271786,1719219193098,-517.39,0.00020547,4]
[330271787,1719219193131,-532.99,0.00020547,4]
[330271788,1719219193173,-500.0,0.00020547,4]
[330271789,1719219193207,-500.0,0.00020547,4]
[330271790,1719219193241,-921.46,0.00020547,4]
[330271791,1719219193275,-826.34,0.00020547,4]
[330271792,1719219193308,-907.2,0.00020547,4]
[330271793,1719219193341,-514.15,0.00020547,4]
[330271794,1719219193374,-500.0,0.00020547,4]
[330271795,1719219193418,-876.76,0.00020547,4]
[330271796,1719219193451,-500.0,0.00020547,4]
[330271797,1719219193485,-500.0,0.00020547,4]
[330271798,1719219193521,-500.0,0.00020547,4]
[330271799,1719219193555,-826.83,0.00020547,4]
[330271800,1719219193588,-500.0,0.00020547,4]
[330271801,1719219193622,-500.0,0.00020547,4]
[330271802,1719219193659,-964.25,0.00020547,4]
[330271803,1719219193692,-503.8,0.00020547,4]
[330271804,1719219193725,-634.47,0.00020547,4]
[330271805,1719219193759,-640.97,0.00020547,4]
[330271806,1719219193792,-605.59,0.00020547,4]
[330271807,1719219193824,-500.0,0.00020547,4]
[330271808,1719219193856,-500.0,0.00020547,4]
[330271809,1719219193888,-500.0,0.00020547,4]
[330271810,1719219193921,-888.06,0.00020547,4]
[330271811,1719219193954,-500.0,0.00020547,4]
[330271812,1719219193992,-1013.43,0.00020547,4]
[330271813,1719219194028,-500.0,0.00020547,4]
[330271814,1719219194064,-500.0,0.00020547,4]
[330271815,1719219194283,-500.0,0.00020547,4]
[330271816,1719219194316,-1802.17,0.00020547,4]
[330271817,1719219194351,-753.92,0.00020547,4]
[330271818,1719219194387,-500.0,0.00020547,4]
[330271819,1719219194422,-500.0,0.00020547,4]
[330271820,1719219194455,-500.0,0.00020547,4]
[330271821,1719219194488,-500.0,0.00020547,4]
[330271822,1719219194525,-738.24,0.00020547,4]
[330271823,1719219194560,-704.86,0.00020547,4]
[330271824,1719219194593,-500.0,0.00020547,4]
[330271825,1719219194625,-500.0,0.00020547,4]
[330271826,1719219194658,-1449.44,0.00020547,4]
[330271827,1719219194692,-500.0,0.00020547,4]
[330271828,1719219194726,-500.0,0.00020547,4]
[330271829,1719219194758,-500.0,0.00020547,4]
[330271830,1719219194791,-740.35,0.00020547,4]
[330271831,1719219194823,-551.77,0.00020547,4]
[330271832,1719219194856,-721.7,0.00020547,4]
[330271833,1719219194891,-563.64,0.00020547,4]
[330271834,1719219194924,-500.0,0.00020547,4]
[330271835,1719219194962,-502.79714969,0.00020547,4]
[330271836,1719219195000,-500.0,0.00020547,4]
[330271837,1719219195034,-1501.35,0.00020547,4]
[330271838,1719219195071,-500.0,0.00020547,4]
[330271839,1719219195105,-1202.18,0.00020547,4]
[330271840,1719219195141,-574.92,0.00020547,4]
[330271841,1719219195176,-193.85,0.00020547,4]
[330271842,1719219195210,-692.24,0.00020547,4]
[330271843,1719219195243,-500.0,0.00020547,4]
[330271844,1719219195276,-751.68,0.00020547,4]
[330271845,1719219195314,-2044.66,0.00020547,4]
[330271846,1719219195349,-646.27,0.00020547,4]
[330271847,1719219195386,-500.0,0.00020547,4]
[330271848,1719219195421,-500.0,0.00020547,4]
[330271849,1719219195456,-500.0,0.00020547,4]
[330271850,1719219195492,-866.29,0.00020547,4]
[330271851,1719219195528,-666.23,0.00020547,4]
[330271852,1719219195564,-500.0,0.00020547,4]
[330271853,1719219195598,-557.44,0.00020547,4]
[330271854,1719219195633,-1449.34,0.00020547,4]
[330271855,1719219195671,-500.0,0.00020547,4]
[330271856,1719219195706,-500.0,0.00020547,4]
[330271857,1719219195743,-639.0,0.00020547,4]
[330271858,1719219195776,-500.0,0.00020547,4]
[330271859,1719219195809,-635.57,0.00020547,4]
[330271860,1719219195845,-500.0,0.00020547,4]
[330271861,1719219195878,-500.0,0.00020547,4]
[330271862,1719219195915,-500.0,0.00020547,4]
[330271863,1719219195949,-1209.07,0.00020547,4]
[330271864,1719219195982,-500.0,0.00020547,4]
[330271865,1719219196014,-552.07,0.00020547,4]
[330271866,1719219196048,-500.0,0.00020547,4]
[330271867,1719219196080,-583.57,0.00020547,4]
[330271868,1719219196113,-500.0,0.00020547,4]
[330271869,1719219196148,-500.0,0.00020547,4]
[330271870,1719219196179,-500.0,0.00020547,4]
[330271871,1719219196213,-650.21,0.00020547,4]
[330271872,1719219196246,-612.46,0.00020547,4]
[330271873,1719219196278,-500.0,0.00020547,4]
[330271874,1719219196313,-500.0,0.00020547,4]
[330271875,1719219196347,-500.0,0.00020547,4]
[330271876,1719219196379,-746.5,0.00020547,4]
[330271877,1719219196416,-1602.79,0.00020547,4]
[330271878,1719219196450,-1731.28,0.00020547,4]
[330271879,1719219196482,-500.0,0.00020547,4]
[330271880,1719219196517,-500.0,0.00020547,4]
[330271881,1719219196551,-500.0,0.00020547,4]
[330271882,1719219196586,-500.0,0.00020547,4]
[330271883,1719219196621,-1285.84,0.00020547,4]
[330271884,1719219196654,-500.0,0.00020547,4]
[330271885,1719219196686,-501.38,0.00020547,4]
[330271886,1719219196719,-500.0,0.00020547,4]
[330271887,1719219196751,-753.11,0.00020547,4]
[330271888,1719219196784,-500.0,0.00020547,4]
[330271889,1719219196818,-1212.55,0.00020547,4]
[330271890,1719219196851,-500.0,0.00020547,4]
[330271891,1719219196884,-1138.46,0.00020547,4]
[330271892,1719219196919,-500.0,0.00020547,4]
[330271893,1719219196952,-500.0,0.00020547,4]
[330271894,1719219196986,-723.22,0.00020547,4]
[330271895,1719219197021,-985.76,0.00020547,4]
[330271896,1719219197059,-500.0,0.00020547,4]
[330271897,1719219197092,-250.0,0.00020547,4]
[330271898,1719219197125,-500.0,0.00020547,4]
[330271899,1719219197160,-1071.39,0.00020547,4]
[330271900,1719219197195,-573.403573,0.00020547,4]
[330271901,1719219197228,-500.0,0.00020547,4]
[330271902,1719219197262,-500.0,0.00020547,4]
[330271903,1719219197297,-500.0,0.00020547,4]
[330271904,1719219197334,-707.98,0.00020547,4]
[330271905,1719219197367,-635.89,0.00020547,4]
[330271906,1719219197400,-689.43,0.00020547,4]
[330271907,1719219197433,-1014.35,0.00020547,4]
[330271908,1719219197465,-500.0,0.00020547,4]
[330271909,1719219197498,-500.0,0.00020547,4]
[330271910,1719219197533,-673.57,0.00020547,4]
[330271911,1719219197566,-500.0,0.00020547,4]
[330271912,1719219197600,-541.37,0.00020547,4]
[330271913,1719219197634,-500.0,0.00020547,4]
[330271914,1719219197670,-563.8,0.00020547,4]
[330271915,1719219197703,-747.4,0.00020547,4]
[330271916,1719219197736,-621.18,0.00020547,4]
[330271917,1719219197770,-653.53,0.00020547,4]
[330271918,1719219197940,-500.0,0.00020547,4]
[330271919,1719219198009,-737.88,0.00020547,4]
[330271920,1719219198045,-908.15,0.00020547,4]
[330271921,1719219198079,-500.0,0.00020547,4]
[330271922,1719219198114,-1561.59,0.00020547,4]
[330271923,1719219198150,-500.0,0.00020547,4]
[330271924,1719219198185,-500.0,0.00020547,4]
[330271925,1719219198219,-570.65,0.00020547,4]
[330271926,1719219198253,-500.0,0.00020547,4]
[330271927,1719219198288,-788.37,0.00020547,4]
[330271928,1719219198324,-758.31,0.00020547,4]
[330271929,1719219198359,-1016.82,0.00020547,4]
[330271930,1719219198395,-500.0,0.00020547,4]
[330271931,1719219198430,-500.0,0.00020547,4]
[330271932,1719219198468,-741.45,0.00020547,4]
[330271933,1719219198504,-500.0,0.00020547,4]
[330271934,1719219198538,-500.0,0.00020547,4]